Workbook

Sheet Inputs
B2: High-Level NEM Rate Impact Analysis
B3: Rocky Mtn Power - Utah
B5: Model Structure
C6: Sector / Rate Class | D6: Residential
C7: Base Year | D7: 2015
C8: Study Period (Years) | D8: 20
B10: System Parameters
C11: Residential Sales (MWh) | D11: 6300000 | F11: Hayet
C12: Residential Revenues ($) | D12: 747113309 | F12: Hayet
C13: Number of Residential Customers (count) | D13: 752114 | F13: Hayet
C14: Sales per customer (MWh) | D14: =D11/D13 -> 8.376389749 | F14: Residential Sales / # of Customers
C15: Customer growth rate | D15: 0 | F15: Hayet
C16: Electricity usage per customer growth rate | D16: 0 | F16: User input
B17: Rate Structure Parameters
C18: Energy Rate ($/MWh) | D18: 151.81 | F18: Hayet
C19: Customer ($/Month) | D19: 6 | F19: RMP Residential rate tariff
C20: Minimum Bill ($/Month) | D20: 8 | F20: RMP Residential rate tariff
C21: Fixed Portion of Energy Rate (%) | D21: 0.7425417354 | F21: Hayet
B22: PV NEM System Parameters
C23: Average PV installed capacity (MW, DC) | D23: 0.004242 | F23: Hayet
C24: Unit capacity factor (%) | D24: 0.2029802292 | F24: Hayet | G24: Warning: You have entered a capacity and/or capacity factor that results in the annual generation being greater than annual consumption, which would trigger RMP's minimm bill. This version of the model doesn't account for minimum bills.
C25: Unit generation (MWh) | D25: =8760*D24*D23 -> 7.54272908 | F25: Calculation based on CF and Capacity
C26: Percent of customers adding DG PV per year | D26: =20433/D13/10 -> 0.002716742409 | F26: Hayet
C27: Number of years with additional DG PV | D27: 10 | F27: User input
B28: Levelized Avoided Cost Inputs
C29: Avoided energy ($/MWh) | D29: 40.72076944 | F29: Avoided fuel, variable O&M, and line losses.
C30: Avoided generation capacity capital costs ($/MWh) | D30: 12.80084544 | F30: Capital cost of generation to meet peak load.
C31: Avoided transmission capital costs ($/MWh) | F31: Cost of money savings resulting from defferring T&D capacity additions.
C32: Avoided distribution capital costs ($/MWh) | F32: Cost of money savings resulting from defferring T&D capacity additions. Default from CPR 2014 (assumes zero avoided distribution)
C33: Avoided environmental Costs ($/MWh) | F33: Costs to comply with environemetnal regulations and policy objectives. Default from CPR 2014.
C34: Fuel price guarantee/avoided risk ($/MWh) | F34: Cost of eliminating uncertainty in fuel price fluctuations. Default $0.00
C36: Variable Avoided Costs ($/MWh) | D36: =SUM(D29+D33+D34) -> 40.72076944 | F36: Includes avoided energy, avoided environmental, and fuel price guarantee
C37: Fixed Avoided Costs ($/MWh) | D37: =SUM(D30:D32) -> 12.80084544 | F37: Includes avoided capital costs associated with generation and T&D capacity
C38: Total Avoided Costs ($/MWh) | D38: =SUM(D36:D37) -> 53.52161488 | F38: Sum of variable and fixed avoided costs

Sheet Rate_Impacts_With_v_Without
B1: Utah NEM Rate Impact Analysis
E2: 2015 | F2: 2016 | G2: 2017 | H2: 2018 | I2: 2019 | J2: 2020 | K2: 2021 | L2: 2022 | M2: 2023 | N2: 2024 | O2: 2025 | P2: 2026 | Q2: 2027 | R2: 2028 | S2: 2029 | T2: 2030 | U2: 2031 | V2: 2032 | W2: 2033 | X2: 2034
C3: Universal
B4: Customers x customer growth rate | D4: Customers (# of customers) | E4: =Inputs!$D$13 -> 752114 | F4: =E4*(1+Inputs!$D$15) -> 752114 | G4: =F4*(1+Inputs!$D$15) -> 752114 | H4: =G4*(1+Inputs!$D$15) -> 752114 | I4: =H4*(1+Inputs!$D$15) -> 752114 | J4: =I4*(1+Inputs!$D$15) -> 752114 | K4: =J4*(1+Inputs!$D$15) -> 752114 | L4: =K4*(1+Inputs!$D$15) -> 752114 | M4: =L4*(1+Inputs!$D$15) -> 752114 | N4: =M4*(1+Inputs!$D$15) -> 752114 | O4: =N4*(1+Inputs!$D$15) -> 752114 | P4: =O4*(1+Inputs!$D$15) -> 752114 | Q4: =P4*(1+Inputs!$D$15) -> 752114 | R4: =Q4*(1+Inputs!$D$15) -> 752114 | S4: =R4*(1+Inputs!$D$15) -> 752114 | T4: =S4*(1+Inputs!$D$15) -> 752114 | U4: =T4*(1+Inputs!$D$15) -> 752114 | V4: =U4*(1+Inputs!$D$15) -> 752114 | W4: =V4*(1+Inputs!$D$15) -> 752114 | X4: =W4*(1+Inputs!$D$15) -> 752114
B5: Typical annual demand x demand grwoth rate | D5: Usage per customer (annual MWh / customer) | E5: =Inputs!$D$14 -> 8.376389749 | F5: =E5*(1+Inputs!$D$16) -> 8.376389749 | G5: =F5*(1+Inputs!$D$16) -> 8.376389749 | H5: =G5*(1+Inputs!$D$16) -> 8.376389749 | I5: =H5*(1+Inputs!$D$16) -> 8.376389749 | J5: =I5*(1+Inputs!$D$16) -> 8.376389749 | K5: =J5*(1+Inputs!$D$16) -> 8.376389749 | L5: =K5*(1+Inputs!$D$16) -> 8.376389749 | M5: =L5*(1+Inputs!$D$16) -> 8.376389749 | N5: =M5*(1+Inputs!$D$16) -> 8.376389749 | O5: =N5*(1+Inputs!$D$16) -> 8.376389749 | P5: =O5*(1+Inputs!$D$16) -> 8.376389749 | Q5: =P5*(1+Inputs!$D$16) -> 8.376389749 | R5: =Q5*(1+Inputs!$D$16) -> 8.376389749 | S5: =R5*(1+Inputs!$D$16) -> 8.376389749 | T5: =S5*(1+Inputs!$D$16) -> 8.376389749 | U5: =T5*(1+Inputs!$D$16) -> 8.376389749 | V5: =U5*(1+Inputs!$D$16) -> 8.376389749 | W5: =V5*(1+Inputs!$D$16) -> 8.376389749 | X5: =W5*(1+Inputs!$D$16) -> 8.376389749
D6: Total residential electricity usage (MWh) | E6: =E5*E4 -> 6300000 | F6: =F5*F4 -> 6300000 | G6: =G5*G4 -> 6300000 | H6: 6300000 | I6: 6300000 | J6: 6300000 | K6: 6300000 | L6: 6300000 | M6: 6300000 | N6: 6300000 | O6: 6300000 | P6: 6300000 | Q6: 6300000 | R6: 6300000 | S6: 6300000 | T6: 6300000 | U6: 6300000 | V6: 6300000 | W6: 6300000 | X6: 6300000
B8: Scenario calculations for no DGPV case | C8: No DG PV Case
B9: Forecasted sales | C9: Annual Sales
B10: Sales = Demand - customer generation | D10: Annual residential sales (MWh) | E10: =E6 -> 6300000 | F10: =F6 -> 6300000 | G10: 6300000 | H10: 6300000 | I10: 6300000 | J10: 6300000 | K10: 6300000 | L10: 6300000 | M10: 6300000 | N10: 6300000 | O10: 6300000 | P10: 6300000 | Q10: 6300000 | R10: 6300000 | S10: 6300000 | T10: 6300000 | U10: 6300000 | V10: 6300000 | W10: 6300000 | X10: 6300000
C11: Rates
B12: Fuel and Purchased Power Charge | D12: Energy Rate - variable portion ($/MWh) | E12: =Inputs!$D$18*(1-Inputs!$D$21) -> 39.08473915 | F12: =Inputs!$D$18*(1-Inputs!$D$21) -> 39.08473915 | G12: =Inputs!$D$18*(1-Inputs!$D$21) -> 39.08473915 | H12: =Inputs!$D$18*(1-Inputs!$D$21) -> 39.08473915 | I12: =Inputs!$D$18*(1-Inputs!$D$21) -> 39.08473915 | J12: =Inputs!$D$18*(1-Inputs!$D$21) -> 39.08473915 | K12: =Inputs!$D$18*(1-Inputs!$D$21) -> 39.08473915 | L12: =Inputs!$D$18*(1-Inputs!$D$21) -> 39.08473915 | M12: =Inputs!$D$18*(1-Inputs!$D$21) -> 39.08473915 | N12: =Inputs!$D$18*(1-Inputs!$D$21) -> 39.08473915 | O12: =Inputs!$D$18*(1-Inputs!$D$21) -> 39.08473915 | P12: =Inputs!$D$18*(1-Inputs!$D$21) -> 39.08473915 | Q12: =Inputs!$D$18*(1-Inputs!$D$21) -> 39.08473915 | R12: =Inputs!$D$18*(1-Inputs!$D$21) -> 39.08473915 | S12: =Inputs!$D$18*(1-Inputs!$D$21) -> 39.08473915 | T12: =Inputs!$D$18*(1-Inputs!$D$21) -> 39.08473915 | U12: =Inputs!$D$18*(1-Inputs!$D$21) -> 39.08473915 | V12: =Inputs!$D$18*(1-Inputs!$D$21) -> 39.08473915 | W12: =Inputs!$D$18*(1-Inputs!$D$21) -> 39.08473915 | X12: =Inputs!$D$18*(1-Inputs!$D$21) -> 39.08473915
B13: Energy rate times fixed portion | D13: Energy Rate - fixed portion ($/MWh) | E13: =Inputs!$D$18*(Inputs!$D$21) -> 112.7252609 | F13: =Inputs!$D$18*(Inputs!$D$21) -> 112.7252609 | G13: =Inputs!$D$18*(Inputs!$D$21) -> 112.7252609 | H13: =Inputs!$D$18*(Inputs!$D$21) -> 112.7252609 | I13: =Inputs!$D$18*(Inputs!$D$21) -> 112.7252609 | J13: =Inputs!$D$18*(Inputs!$D$21) -> 112.7252609 | K13: =Inputs!$D$18*(Inputs!$D$21) -> 112.7252609 | L13: =Inputs!$D$18*(Inputs!$D$21) -> 112.7252609 | M13: =Inputs!$D$18*(Inputs!$D$21) -> 112.7252609 | N13: =Inputs!$D$18*(Inputs!$D$21) -> 112.7252609 | O13: =Inputs!$D$18*(Inputs!$D$21) -> 112.7252609 | P13: =Inputs!$D$18*(Inputs!$D$21) -> 112.7252609 | Q13: =Inputs!$D$18*(Inputs!$D$21) -> 112.7252609 | R13: =Inputs!$D$18*(Inputs!$D$21) -> 112.7252609 | S13: =Inputs!$D$18*(Inputs!$D$21) -> 112.7252609 | T13: =Inputs!$D$18*(Inputs!$D$21) -> 112.7252609 | U13: =Inputs!$D$18*(Inputs!$D$21) -> 112.7252609 | V13: =Inputs!$D$18*(Inputs!$D$21) -> 112.7252609 | W13: =Inputs!$D$18*(Inputs!$D$21) -> 112.7252609 | X13: =Inputs!$D$18*(Inputs!$D$21) -> 112.7252609
B14: Sum of above | D14: Total Energy Rate ($/MWh) | E14: =E12+E13 -> 151.81 | F14: =F12+F13 -> 151.81 | G14: 151.81 | H14: 151.81 | I14: 151.81 | J14: 151.81 | K14: 151.81 | L14: 151.81 | M14: 151.81 | N14: 151.81 | O14: 151.81 | P14: 151.81 | Q14: 151.81 | R14: 151.81 | S14: 151.81 | T14: 151.81 | U14: 151.81 | V14: 151.81 | W14: 151.81 | X14: 151.81
B15: Customer charge | D15: Customer ($/Month) | E15: =Ref_Sheet!$C$6 -> 6 | F15: =Ref_Sheet!$C$6 -> 6 | G15: =Ref_Sheet!$C$6 -> 6 | H15: =Ref_Sheet!$C$6 -> 6 | I15: =Ref_Sheet!$C$6 -> 6 | J15: =Ref_Sheet!$C$6 -> 6 | K15: =Ref_Sheet!$C$6 -> 6 | L15: =Ref_Sheet!$C$6 -> 6 | M15: =Ref_Sheet!$C$6 -> 6 | N15: =Ref_Sheet!$C$6 -> 6 | O15: =Ref_Sheet!$C$6 -> 6 | P15: =Ref_Sheet!$C$6 -> 6 | Q15: =Ref_Sheet!$C$6 -> 6 | R15: =Ref_Sheet!$C$6 -> 6 | S15: =Ref_Sheet!$C$6 -> 6 | T15: =Ref_Sheet!$C$6 -> 6 | U15: =Ref_Sheet!$C$6 -> 6 | V15: =Ref_Sheet!$C$6 -> 6 | W15: =Ref_Sheet!$C$6 -> 6 | X15: =Ref_Sheet!$C$6 -> 6
B16: Minimum bill | D16: Minimum bill ($) | E16: =Ref_Sheet!$C$22 -> 8 | F16: =Ref_Sheet!$C$22 -> 8 | G16: =Ref_Sheet!$C$22 -> 8 | H16: =Ref_Sheet!$C$22 -> 8 | I16: =Ref_Sheet!$C$22 -> 8 | J16: =Ref_Sheet!$C$22 -> 8 | K16: =Ref_Sheet!$C$22 -> 8 | L16: =Ref_Sheet!$C$22 -> 8 | M16: =Ref_Sheet!$C$22 -> 8 | N16: =Ref_Sheet!$C$22 -> 8 | O16: =Ref_Sheet!$C$22 -> 8 | P16: =Ref_Sheet!$C$22 -> 8 | Q16: =Ref_Sheet!$C$22 -> 8 | R16: =Ref_Sheet!$C$22 -> 8 | S16: =Ref_Sheet!$C$22 -> 8 | T16: =Ref_Sheet!$C$22 -> 8 | U16: =Ref_Sheet!$C$22 -> 8 | V16: =Ref_Sheet!$C$22 -> 8 | W16: =Ref_Sheet!$C$22 -> 8 | X16: =Ref_Sheet!$C$22 -> 8
B17: Forecasted Revnues | C17: Annual Revenues and Costs
B18: Energy sales x energy rate x var % | D18: Variable Revenues and Costs | E18: =(E12)*E10 -> 246233856.6 | F18: 246233856.6 | G18: 246233856.6 | H18: 246233856.6 | I18: 246233856.6 | J18: 246233856.6 | K18: 246233856.6 | L18: 246233856.6 | M18: 246233856.6 | N18: 246233856.6 | O18: 246233856.6 | P18: 246233856.6 | Q18: 246233856.6 | R18: =(R12)*R10 -> 246233856.6 | S18: 246233856.6 | T18: 246233856.6 | U18: 246233856.6 | V18: 246233856.6 | W18: 246233856.6 | X18: 246233856.6
B19: Energy sales x energy rate x fixed % | D19: Fixed Revenues and Costs | E19: =(E13)*E10 -> 710169143.4 | F19: 710169143.4 | G19: 710169143.4 | H19: 710169143.4 | I19: 710169143.4 | J19: 710169143.4 | K19: 710169143.4 | L19: 710169143.4 | M19: 710169143.4 | N19: 710169143.4 | O19: 710169143.4 | P19: 710169143.4 | Q19: 710169143.4 | R19: =(R13)*R10 -> 710169143.4 | S19: 710169143.4 | T19: 710169143.4 | U19: 710169143.4 | V19: 710169143.4 | W19: 710169143.4 | X19: 710169143.4
B20: Sum of fixed and variable | D20: Total Energy Rate Revenues and Costs | E20: =E18+E19 -> 956403000 | F20: =F18+F19 -> 956403000 | G20: =G18+G19 -> 956403000 | H20: 956403000 | I20: 956403000 | J20: 956403000 | K20: 956403000 | L20: 956403000 | M20: 956403000 | N20: 956403000 | O20: 956403000 | P20: 956403000 | Q20: 956403000 | R20: =R18+R19 -> 956403000 | S20: 956403000 | T20: 956403000 | U20: 956403000 | V20: 956403000 | W20: 956403000 | X20: 956403000
B21: Customers x customer charge | D21: Customer Charge Revenues and Costs | E21: =E15*E4*12 -> 54152208 | F21: =F15*F4*12 -> 54152208 | G21: 54152208 | H21: 54152208 | I21: 54152208 | J21: 54152208 | K21: 54152208 | L21: 54152208 | M21: 54152208 | N21: 54152208 | O21: 54152208 | P21: 54152208 | Q21: 54152208 | R21: =R15*R4*12 -> 54152208 | S21: 54152208 | T21: 54152208 | U21: 54152208 | V21: 54152208 | W21: 54152208 | X21: 54152208
B22: Sum of Energy Rate and Customer Charge | D22: Total Revenues and Costs | E22: =E20+E21 -> 1010555208 | F22: =F20+F21 -> 1010555208 | G22: 1010555208 | H22: 1010555208 | I22: 1010555208 | J22: 1010555208 | K22: 1010555208 | L22: 1010555208 | M22: 1010555208 | N22: 1010555208 | O22: 1010555208 | P22: 1010555208 | Q22: 1010555208 | R22: =R20+R21 -> 1010555208 | S22: 1010555208 | T22: 1010555208 | U22: 1010555208 | V22: 1010555208 | W22: 1010555208 | X22: 1010555208
D23: Percent of total costs that are "fixed" | E23: =(E19+E21)/E22 -> 0.756338046 | F23: =(F19+F21)/F22 -> 0.756338046 | G23: =(G19+G21)/G22 -> 0.756338046 | H23: =(H19+H21)/H22 -> 0.756338046 | I23: =(I19+I21)/I22 -> 0.756338046 | J23: =(J19+J21)/J22 -> 0.756338046 | K23: =(K19+K21)/K22 -> 0.756338046 | L23: =(L19+L21)/L22 -> 0.756338046 | M23: =(M19+M21)/M22 -> 0.756338046 | N23: =(N19+N21)/N22 -> 0.756338046 | O23: =(O19+O21)/O22 -> 0.756338046 | P23: =(P19+P21)/P22 -> 0.756338046 | Q23: =(Q19+Q21)/Q22 -> 0.756338046 | R23: =(R19+R21)/R22 -> 0.756338046 | S23: =(S19+S21)/S22 -> 0.756338046 | T23: =(T19+T21)/T22 -> 0.756338046 | U23: =(U19+U21)/U22 -> 0.756338046 | V23: =(V19+V21)/V22 -> 0.756338046 | W23: =(W19+W21)/W22 -> 0.756338046 | X23: =(X19+X21)/X22 -> 0.756338046
C25: With DG PV
B26: Forecasted sales | C26: Annual Sales
B27: % of customers with PV + grwoth rate | D27: Customers with PV (%) | E27: =Inputs!D26 -> 0.002716742409 | F27: =MIN(E27+Inputs!$D$26,Inputs!$D$26*Inputs!$D$27) -> 0.005433484817 | G27: =MIN(F27+Inputs!$D$26,Inputs!$D$26*Inputs!$D$27) -> 0.008150227226 | H27: =MIN(G27+Inputs!$D$26,Inputs!$D$26*Inputs!$D$27) -> 0.01086696963 | I27: =MIN(H27+Inputs!$D$26,Inputs!$D$26*Inputs!$D$27) -> 0.01358371204 | J27: =MIN(I27+Inputs!$D$26,Inputs!$D$26*Inputs!$D$27) -> 0.01630045445 | K27: =MIN(J27+Inputs!$D$26,Inputs!$D$26*Inputs!$D$27) -> 0.01901719686 | L27: =MIN(K27+Inputs!$D$26,Inputs!$D$26*Inputs!$D$27) -> 0.02173393927 | M27: =MIN(L27+Inputs!$D$26,Inputs!$D$26*Inputs!$D$27) -> 0.02445068168 | N27: =MIN(M27+Inputs!$D$26,Inputs!$D$26*Inputs!$D$27) -> 0.02716742409 | O27: =MIN(N27+Inputs!$D$26,Inputs!$D$26*Inputs!$D$27) -> 0.02716742409 | P27: =MIN(O27+Inputs!$D$26,Inputs!$D$26*Inputs!$D$27) -> 0.02716742409 | Q27: =MIN(P27+Inputs!$D$26,Inputs!$D$26*Inputs!$D$27) -> 0.02716742409 | R27: =MIN(Q27+Inputs!$D$26,Inputs!$D$26*Inputs!$D$27) -> 0.02716742409 | S27: =MIN(R27+Inputs!$D$26,Inputs!$D$26*Inputs!$D$27) -> 0.02716742409 | T27: =MIN(S27+Inputs!$D$26,Inputs!$D$26*Inputs!$D$27) -> 0.02716742409 | U27: =MIN(T27+Inputs!$D$26,Inputs!$D$26*Inputs!$D$27) -> 0.02716742409 | V27: =MIN(U27+Inputs!$D$26,Inputs!$D$26*Inputs!$D$27) -> 0.02716742409 | W27: =MIN(V27+Inputs!$D$26,Inputs!$D$26*Inputs!$D$27) -> 0.02716742409 | X27: =MIN(W27+Inputs!$D$26,Inputs!$D$26*Inputs!$D$27) -> 0.02716742409
B28: Customers x % with DGPV * typical DGPV gen | D28: Annual Customer PV Gen (MWh) | E28: =E4*E27*Inputs!$D$25 -> 15412.05833 | F28: =F4*F27*Inputs!$D$25 -> 30824.11666 | G28: =G4*G27*Inputs!$D$25 -> 46236.17499 | H28: =H4*H27*Inputs!$D$25 -> 61648.23332 | I28: =I4*I27*Inputs!$D$25 -> 77060.29164 | J28: =J4*J27*Inputs!$D$25 -> 92472.34997 | K28: =K4*K27*Inputs!$D$25 -> 107884.4083 | L28: =L4*L27*Inputs!$D$25 -> 123296.4666 | M28: =M4*M27*Inputs!$D$25 -> 138708.525 | N28: =N4*N27*Inputs!$D$25 -> 154120.5833 | O28: =O4*O27*Inputs!$D$25 -> 154120.5833 | P28: =P4*P27*Inputs!$D$25 -> 154120.5833 | Q28: =Q4*Q27*Inputs!$D$25 -> 154120.5833 | R28: =R4*R27*Inputs!$D$25 -> 154120.5833 | S28: =S4*S27*Inputs!$D$25 -> 154120.5833 | T28: =T4*T27*Inputs!$D$25 -> 154120.5833 | U28: =U4*U27*Inputs!$D$25 -> 154120.5833 | V28: =V4*V27*Inputs!$D$25 -> 154120.5833 | W28: =W4*W27*Inputs!$D$25 -> 154120.5833 | X28: =X4*X27*Inputs!$D$25 -> 154120.5833
B29: Net Sales = Demand - customer generation | D29: Net annual residential sales [after PV] (MWh) | E29: =E6-E28 -> 6284587.942 | F29: 6269175.883 | G29: 6253763.825 | H29: 6238351.767 | I29: 6222939.708 | J29: 6207527.65 | K29: 6192115.592 | L29: 6176703.533 | M29: 6161291.475 | N29: 6145879.417 | O29: 6145879.417 | P29: 6145879.417 | Q29: 6145879.417 | R29: 6145879.417 | S29: 6145879.417 | T29: 6145879.417 | U29: 6145879.417 | V29: 6145879.417 | W29: 6145879.417 | X29: 6145879.417
D30: Installed DG PV (MW) | E30: =E27*E4*Inputs!$D$23 -> 8.6676786 | F30: =F27*F4*Inputs!$D$23 -> 17.3353572 | G30: =G27*G4*Inputs!$D$23 -> 26.0030358 | H30: =H27*H4*Inputs!$D$23 -> 34.6707144 | I30: =I27*I4*Inputs!$D$23 -> 43.338393 | J30: =J27*J4*Inputs!$D$23 -> 52.0060716 | K30: =K27*K4*Inputs!$D$23 -> 60.6737502 | L30: =L27*L4*Inputs!$D$23 -> 69.3414288 | M30: =M27*M4*Inputs!$D$23 -> 78.0091074 | N30: =N27*N4*Inputs!$D$23 -> 86.676786 | O30: =O27*O4*Inputs!$D$23 -> 86.676786 | P30: =P27*P4*Inputs!$D$23 -> 86.676786 | Q30: =Q27*Q4*Inputs!$D$23 -> 86.676786 | R30: =R27*R4*Inputs!$D$23 -> 86.676786 | S30: =S27*S4*Inputs!$D$23 -> 86.676786 | T30: =T27*T4*Inputs!$D$23 -> 86.676786 | U30: =U27*U4*Inputs!$D$23 -> 86.676786 | V30: =V27*V4*Inputs!$D$23 -> 86.676786 | W30: =W27*W4*Inputs!$D$23 -> 86.676786 | X30: =X27*X4*Inputs!$D$23 -> 86.676786
C31: Rates
B32: New variable costs / net sales | D32: Energy Rate - variable portion ($/MWh) | E32: =E40/E29 -> 39.08072701 | F32: =F40/F29 -> 39.07669516 | G32: 39.07264343 | H32: 39.06857167 | I32: 39.06447976 | J32: 39.06036752 | K32: 39.05623481 | L32: 39.05208148 | M32: 39.04790736 | N32: 39.04371232 | O32: 39.04371232 | P32: 39.04371232 | Q32: 39.04371232 | R32: 39.04371232 | S32: 39.04371232 | T32: 39.04371232 | U32: 39.04371232 | V32: 39.04371232 | W32: 39.04371232 | X32: 39.04371232
B33: New fixed costs / net sales | D33: Energy Rate - fixed portion ($/MWh) | E33: =E41/E29 -> 112.9703113 | F33: 113.2165666 | G33: 113.4640356 | H33: 113.7127274 | I33: 113.9626511 | J33: 114.2138157 | K33: 114.4662307 | L33: 114.7199053 | M33: 114.974849 | N33: 115.2310714 | O33: 115.2310714 | P33: 115.2310714 | Q33: 115.2310714 | R33: 115.2310714 | S33: 115.2310714 | T33: 115.2310714 | U33: 115.2310714 | V33: 115.2310714 | W33: 115.2310714 | X33: 115.2310714
B34: Sum of above | D34: Total Energy Rate ($/kWh) | E34: =E33+E32 -> 152.0510383 | F34: =F33+F32 -> 152.2932617 | G34: 152.536679 | H34: 152.7812991 | I34: 153.0271308 | J34: 153.2741832 | K34: 153.5224655 | L34: 153.7719868 | M34: 154.0227564 | N34: 154.2747837 | O34: 154.2747837 | P34: 154.2747837 | Q34: 154.2747837 | R34: 154.2747837 | S34: 154.2747837 | T34: 154.2747837 | U34: 154.2747837 | V34: 154.2747837 | W34: 154.2747837 | X34: 154.2747837
B35: Same as No DG PV | D35: Customer ($/Month) | E35: =Inputs!$D$19 -> 6 | F35: =Inputs!$D$19 -> 6 | G35: =Inputs!$D$19 -> 6 | H35: =Inputs!$D$19 -> 6 | I35: =Inputs!$D$19 -> 6 | J35: =Inputs!$D$19 -> 6 | K35: =Inputs!$D$19 -> 6 | L35: =Inputs!$D$19 -> 6 | M35: =Inputs!$D$19 -> 6 | N35: =Inputs!$D$19 -> 6 | O35: =Inputs!$D$19 -> 6 | P35: =Inputs!$D$19 -> 6 | Q35: =Inputs!$D$19 -> 6 | R35: =Inputs!$D$19 -> 6 | S35: =Inputs!$D$19 -> 6 | T35: =Inputs!$D$19 -> 6 | U35: =Inputs!$D$19 -> 6 | V35: =Inputs!$D$19 -> 6 | W35: =Inputs!$D$19 -> 6 | X35: =Inputs!$D$19 -> 6
B36: Same as No DG PV | D36: Minimum bill ($) | E36: =Inputs!$D$20 -> 8 | F36: =Inputs!$D$20 -> 8 | G36: =Inputs!$D$20 -> 8 | H36: =Inputs!$D$20 -> 8 | I36: =Inputs!$D$20 -> 8 | J36: =Inputs!$D$20 -> 8 | K36: =Inputs!$D$20 -> 8 | L36: =Inputs!$D$20 -> 8 | M36: =Inputs!$D$20 -> 8 | N36: =Inputs!$D$20 -> 8 | O36: =Inputs!$D$20 -> 8 | P36: =Inputs!$D$20 -> 8 | Q36: =Inputs!$D$20 -> 8 | R36: =Inputs!$D$20 -> 8 | S36: =Inputs!$D$20 -> 8 | T36: =Inputs!$D$20 -> 8 | U36: =Inputs!$D$20 -> 8 | V36: =Inputs!$D$20 -> 8 | W36: =Inputs!$D$20 -> 8 | X36: =Inputs!$D$20 -> 8
B37: Forecasted Revnues / Costs | C37: Annual Revenues and Costs
B38: Costs avoided | D38: Avoided costs - variable | E38: =(Inputs!$D$36)*E$28 -> 627590.8737 | F38: =(Inputs!$D$36)*F$28 -> 1255181.747 | G38: =(Inputs!$D$36)*G$28 -> 1882772.621 | H38: =(Inputs!$D$36)*H$28 -> 2510363.495 | I38: =(Inputs!$D$36)*I$28 -> 3137954.369 | J38: =(Inputs!$D$36)*J$28 -> 3765545.242 | K38: =(Inputs!$D$36)*K$28 -> 4393136.116 | L38: =(Inputs!$D$36)*L$28 -> 5020726.99 | M38: =(Inputs!$D$36)*M$28 -> 5648317.864 | N38: =(Inputs!$D$36)*N$28 -> 6275908.737 | O38: =(Inputs!$D$36)*O$28 -> 6275908.737 | P38: =(Inputs!$D$36)*P$28 -> 6275908.737 | Q38: =(Inputs!$D$36)*Q$28 -> 6275908.737 | R38: =(Inputs!$D$36)*R$28 -> 6275908.737 | S38: =(Inputs!$D$36)*S$28 -> 6275908.737 | T38: =(Inputs!$D$36)*T$28 -> 6275908.737 | U38: =(Inputs!$D$36)*U$28 -> 6275908.737 | V38: =(Inputs!$D$36)*V$28 -> 6275908.737 | W38: =(Inputs!$D$36)*W$28 -> 6275908.737 | X38: =(Inputs!$D$36)*X$28 -> 6275908.737
B39: Costs avoided | D39: Avoided costs - fixed | E39: =(Inputs!$D$37)*E$28 -> 197287.3766 | F39: =(Inputs!$D$37)*F$28 -> 394574.7532 | G39: =(Inputs!$D$37)*G$28 -> 591862.1298 | H39: =(Inputs!$D$37)*H$28 -> 789149.5064 | I39: =(Inputs!$D$37)*I$28 -> 986436.8831 | J39: =(Inputs!$D$37)*J$28 -> 1183724.26 | K39: =(Inputs!$D$37)*K$28 -> 1381011.636 | L39: =(Inputs!$D$37)*L$28 -> 1578299.013 | M39: =(Inputs!$D$37)*M$28 -> 1775586.389 | N39: =(Inputs!$D$37)*N$28 -> 1972873.766 | O39: =(Inputs!$D$37)*O$28 -> 1972873.766 | P39: =(Inputs!$D$37)*P$28 -> 1972873.766 | Q39: =(Inputs!$D$37)*Q$28 -> 1972873.766 | R39: =(Inputs!$D$37)*R$28 -> 1972873.766 | S39: =(Inputs!$D$37)*S$28 -> 1972873.766 | T39: =(Inputs!$D$37)*T$28 -> 1972873.766 | U39: =(Inputs!$D$37)*U$28 -> 1972873.766 | V39: =(Inputs!$D$37)*V$28 -> 1972873.766 | W39: =(Inputs!$D$37)*W$28 -> 1972873.766 | X39: =(Inputs!$D$37)*X$28 -> 1972873.766
B40: No DG PV less avoided fixed costs | D40: Variable Revenues and Costs | E40: =E18-E38 -> 245606265.8 | F40: 244978674.9 | G40: 244351084 | H40: 243723493.1 | I40: 243095902.3 | J40: 242468311.4 | K40: 241840720.5 | L40: 241213129.6 | M40: 240585538.8 | N40: 239957947.9 | O40: 239957947.9 | P40: 239957947.9 | Q40: 239957947.9 | R40: 239957947.9 | S40: 239957947.9 | T40: 239957947.9 | U40: 239957947.9 | V40: 239957947.9 | W40: 239957947.9 | X40: 239957947.9
B41: No DG PV less avoided fixed costs | D41: Fixed Revenues and Costs | E41: =E19-E39 -> 709971856 | F41: 709774568.6 | G41: 709577281.2 | H41: 709379993.9 | I41: 709182706.5 | J41: 708985419.1 | K41: 708788131.7 | L41: 708590844.4 | M41: 708393557 | N41: 708196269.6 | O41: 708196269.6 | P41: 708196269.6 | Q41: 708196269.6 | R41: 708196269.6 | S41: 708196269.6 | T41: 708196269.6 | U41: 708196269.6 | V41: 708196269.6 | W41: 708196269.6 | X41: 708196269.6
B42: Sum of fixed and variable | D42: Total Energy Rate Revenues and Costs | E42: =E40+E41 -> 955578121.7 | F42: =F40+F41 -> 954753243.5 | G42: 953928365.2 | H42: 953103487 | I42: 952278608.7 | J42: 951453730.5 | K42: 950628852.2 | L42: 949803974 | M42: 948979095.7 | N42: 948154217.5 | O42: 948154217.5 | P42: 948154217.5 | Q42: 948154217.5 | R42: 948154217.5 | S42: 948154217.5 | T42: 948154217.5 | U42: 948154217.5 | V42: 948154217.5 | W42: 948154217.5 | X42: 948154217.5
B43: Same as No DG PV | D43: Customer Charge Revenues and Costs | E43: =E21 -> 54152208 | F43: 54152208 | G43: 54152208 | H43: 54152208 | I43: 54152208 | J43: 54152208 | K43: 54152208 | L43: 54152208 | M43: 54152208 | N43: 54152208 | O43: 54152208 | P43: 54152208 | Q43: 54152208 | R43: 54152208 | S43: 54152208 | T43: 54152208 | U43: 54152208 | V43: 54152208 | W43: 54152208 | X43: 54152208
B44: Sum of Energy Rate and Customer Charge | D44: Total Revenues and Costs | E44: =E42+E43 -> 1009730330 | F44: =F42+F43 -> 1008905451 | G44: 1008080573 | H44: 1007255695 | I44: 1006430817 | J44: 1005605938 | K44: 1004781060 | L44: 1003956182 | M44: 1003131304 | N44: 1002306425 | O44: 1002306425 | P44: 1002306425 | Q44: 1002306425 | R44: 1002306425 | S44: 1002306425 | T44: 1002306425 | U44: 1002306425 | V44: 1002306425 | W44: 1002306425 | X44: 1002306425
D45: Percent of total costs that are "fixed" | E45: =(E41+E43)/E44 -> 0.7567605345 | F45: =(F41+F43)/F44 -> 0.7571837138 | G45: 0.7576075857 | H45: 0.7580321518 | I45: 0.7584574139 | J45: 0.7588833736 | K45: 0.7593100327 | L45: 0.759737393 | M45: 0.760165456 | N45: 0.7605942237 | O45: 0.7605942237 | P45: 0.7605942237 | Q45: 0.7605942237 | R45: 0.7605942237 | S45: 0.7605942237 | T45: 0.7605942237 | U45: 0.7605942237 | V45: 0.7605942237 | W45: 0.7605942237 | X45: 0.7605942237
C47: Differences
C48: Rates
D49: Change in Energy Rate - variable portion ($/MWh) | E49: =E32-E12 -> -0.004012131658 | F49: -0.008043990058 | G49: -0.01209572105 | H49: -0.01616747191 | I49: -0.0202593914 | J49: -0.02437162973 | K49: -0.02850433863 | L49: -0.03265767133 | M49: -0.0368317826 | N49: -0.04102682876 | O49: -0.04102682876 | P49: -0.04102682876 | Q49: -0.04102682876 | R49: -0.04102682876 | S49: -0.04102682876 | T49: -0.04102682876 | U49: -0.04102682876 | V49: -0.04102682876 | W49: -0.04102682876 | X49: -0.04102682876
D50: Change in Energy Rate - fixed portion ($/MWh) | E50: =E33-E13 -> 0.2450504207 | F50: 0.4913056987 | G50: 0.738774742 | H50: 0.9874665465 | I50: 1.237390197 | J50: 1.48855487 | K50: 1.74096983 | L50: 1.994644438 | M50: 2.249588146 | N50: 2.505810502 | O50: 2.505810502 | P50: 2.505810502 | Q50: 2.505810502 | R50: 2.505810502 | S50: 2.505810502 | T50: 2.505810502 | U50: 2.505810502 | V50: 2.505810502 | W50: 2.505810502 | X50: 2.505810502
D51: Change in Total Energy Rate ($/MWh) | E51: =E34-E14 -> 0.241038289 | F51: 0.4832617086 | G51: 0.726679021 | H51: 0.9712990746 | I51: 1.217130806 | J51: 1.46418324 | K51: 1.712465492 | L51: 1.961986767 | M51: 2.212756364 | N51: 2.464783674 | O51: 2.464783674 | P51: 2.464783674 | Q51: 2.464783674 | R51: 2.464783674 | S51: 2.464783674 | T51: 2.464783674 | U51: 2.464783674 | V51: 2.464783674 | W51: 2.464783674 | X51: 2.464783674 | Y51: `
D52: Change in Customer ($/Month) | E52: =E35-E15 -> 0 | F52: 0 | G52: 0 | H52: 0 | I52: 0 | J52: 0 | K52: 0 | L52: 0 | M52: 0 | N52: 0 | O52: 0 | P52: 0 | Q52: 0 | R52: 0 | S52: 0 | T52: 0 | U52: 0 | V52: 0 | W52: 0 | X52: 0
D53: Change in Minimum bill ($) | E53: =E36-E16 -> 0 | F53: 0 | G53: 0 | H53: 0 | I53: 0 | J53: 0 | K53: 0 | L53: 0 | M53: 0 | N53: 0 | O53: 0 | P53: 0 | Q53: 0 | R53: 0 | S53: 0 | T53: 0 | U53: 0 | V53: 0 | W53: 0 | X53: 0
D55: Change in Energy Rate - variable portion (%) | E55: =E32/E12-1 -> -0.0001026521283 | F55: -0.0002058089739 | G55: -0.0003094742682 | H55: -0.0004136517798 | I55: -0.0005183453143 | J55: -0.0006235587153 | K55: -0.0007292958647 | L55: -0.0008355606829 | M55: -0.0009423571298 | N55: -0.001049689205 | O55: -0.001049689205 | P55: -0.001049689205 | Q55: -0.001049689205 | R55: -0.001049689205 | S55: -0.001049689205 | T55: -0.001049689205 | U55: -0.001049689205 | V55: -0.001049689205 | W55: -0.001049689205 | X55: -0.001049689205
D56: Change in Energy Rate - fixed portion (%) | E56: =E33/E13-1 -> 0.002173873175 | F56: 0.004358434791 | G56: 0.006553763872 | H56: 0.008759940222 | I56: 0.01097704444 | J56: 0.01320515791 | K56: 0.01544436285 | L56: 0.01769474227 | M56: 0.01995638005 | N56: 0.02222936087 | O56: 0.02222936087 | P56: 0.02222936087 | Q56: 0.02222936087 | R56: 0.02222936087 | S56: 0.02222936087 | T56: 0.02222936087 | U56: 0.02222936087 | V56: 0.02222936087 | W56: 0.02222936087 | X56: 0.02222936087
D57: Change in Total Energy Rate (%) | E57: =E34/E14-1 -> 0.001587762921 | F57: 0.003183332512 | G57: 0.004786766491 | H57: 0.006398123145 | I57: 0.00801746134 | J57: 0.009644840525 | K57: 0.01128032074 | L57: 0.01292396263 | M57: 0.01457582744 | N57: 0.01623597703 | O57: 0.01623597703 | P57: 0.01623597703 | Q57: 0.01623597703 | R57: 0.01623597703 | S57: 0.01623597703 | T57: 0.01623597703 | U57: 0.01623597703 | V57: 0.01623597703 | W57: 0.01623597703 | X57: 0.01623597703
B59: Avoided Costs | D59: Energy Rate impact due to AC (¢/kWh) | E59: =(E42/E10-E14)*(Ref_Sheet!$C$72/Ref_Sheet!$C$71) -> -0.01309330556 | F59: =(F42/F10-F14)*(Ref_Sheet!$C$72/Ref_Sheet!$C$71) -> -0.02618661112 | G59: =(G42/G10-G14)*(Ref_Sheet!$C$72/Ref_Sheet!$C$71) -> -0.03927991668 | H59: =(H42/H10-H14)*(Ref_Sheet!$C$72/Ref_Sheet!$C$71) -> -0.05237322224 | I59: =(I42/I10-I14)*(Ref_Sheet!$C$72/Ref_Sheet!$C$71) -> -0.06546652781 | J59: =(J42/J10-J14)*(Ref_Sheet!$C$72/Ref_Sheet!$C$71) -> -0.07855983337 | K59: =(K42/K10-K14)*(Ref_Sheet!$C$72/Ref_Sheet!$C$71) -> -0.09165313893 | L59: =(L42/L10-L14)*(Ref_Sheet!$C$72/Ref_Sheet!$C$71) -> -0.1047464445 | M59: =(M42/M10-M14)*(Ref_Sheet!$C$72/Ref_Sheet!$C$71) -> -0.11783975 | N59: =(N42/N10-N14)*(Ref_Sheet!$C$72/Ref_Sheet!$C$71) -> -0.1309330556 | O59: =(O42/O10-O14)*(Ref_Sheet!$C$72/Ref_Sheet!$C$71) -> -0.1309330556 | P59: =(P42/P10-P14)*(Ref_Sheet!$C$72/Ref_Sheet!$C$71) -> -0.1309330556 | Q59: =(Q42/Q10-Q14)*(Ref_Sheet!$C$72/Ref_Sheet!$C$71) -> -0.1309330556 | R59: =(R42/R10-R14)*(Ref_Sheet!$C$72/Ref_Sheet!$C$71) -> -0.1309330556 | S59: =(S42/S10-S14)*(Ref_Sheet!$C$72/Ref_Sheet!$C$71) -> -0.1309330556 | T59: =(T42/T10-T14)*(Ref_Sheet!$C$72/Ref_Sheet!$C$71) -> -0.1309330556 | U59: =(U42/U10-U14)*(Ref_Sheet!$C$72/Ref_Sheet!$C$71) -> -0.1309330556 | V59: =(V42/V10-V14)*(Ref_Sheet!$C$72/Ref_Sheet!$C$71) -> -0.1309330556 | W59: =(W42/W10-W14)*(Ref_Sheet!$C$72/Ref_Sheet!$C$71) -> -0.1309330556 | X59: =(X42/X10-X14)*(Ref_Sheet!$C$72/Ref_Sheet!$C$71) -> -0.1309330556
B60: Recovery of Lost Revenues | D60: Energy rate impact due to lost revenues (¢/kWh) | E60: =E61-E59 -> 0.03719713446 | F60: =F61-F59 -> 0.07451278199 | G60: =G61-G59 -> 0.1119478188 | H60: 0.1495031297 | I60: 0.1871796084 | J60: 0.2249781574 | K60: 0.2628996881 | L60: 0.3009451212 | M60: 0.3391153864 | N60: 0.377411423 | O60: 0.377411423 | P60: 0.377411423 | Q60: 0.377411423 | R60: 0.377411423 | S60: 0.377411423 | T60: 0.377411423 | U60: 0.377411423 | V60: 0.377411423 | W60: 0.377411423 | X60: 0.377411423
B61: Net Effect | D61: Energy rate impact of both (¢/kWh) | E61: =E51/10 -> 0.0241038289 | F61: =F51/10 -> 0.04832617086 | G61: =G51/10 -> 0.0726679021 | H61: 0.09712990746 | I61: 0.1217130806 | J61: 0.146418324 | K61: 0.1712465492 | L61: 0.1961986767 | M61: 0.2212756364 | N61: 0.2464783674 | O61: 0.2464783674 | P61: 0.2464783674 | Q61: 0.2464783674 | R61: 0.2464783674 | S61: 0.2464783674 | T61: 0.2464783674 | U61: 0.2464783674 | V61: 0.2464783674 | W61: 0.2464783674 | X61: 0.2464783674
E63: Averages
E64: 10 yrs | F64: 20 yrs
D65: Change in Energy Rate - variable portion ($/MWh) | E65: =AVERAGE(E49:N49) -> -0.02239709571 | F65: =AVERAGE(E49:X49) -> -0.03171196223
D66: Change in Energy Rate - fixed portion ($/MWh) | E66: =AVERAGE(E50:N50) -> 1.367955539 | F66: =AVERAGE(E50:X50) -> 1.936883021
D67: Change in Total Energy Rate ($/MWh) | E67: =AVERAGE(E51:N51) -> 1.345558444 | F67: =AVERAGE(E51:X51) -> 1.905171059
D68: Customer ($/Month) | E68: =AVERAGE(E52:N52) -> 0 | F68: =AVERAGE(E52:X52) -> 0
D69: Minimum bill ($) | E69: =AVERAGE(E53:N53) -> 0 | F69: =AVERAGE(E53:X53) -> 0
D71: Change in Energy Rate - variable portion (%) | E71: =AVERAGE(E55:N55) -> -0.0005730394062 | F71: =AVERAGE(E55:X55) -> -0.0008113643055
D72: Change in Energy Rate - fixed portion (%) | E72: =AVERAGE(E56:N56) -> 0.01213530604 | F72: =AVERAGE(E56:X56) -> 0.01718233345
D73: Total Energy Rate (%)
D75: Energy Rate impact due to AC (¢/kWh) | E75: =AVERAGE(E59:N59) -> -0.07201318059 | F75: =AVERAGE(E59:X59) -> -0.1014731181
D76: Energy rate impact due to lost revenues (¢/kWh) | E76: =AVERAGE(E60:N60) -> 0.2065690249 | F76: =AVERAGE(E60:X60) -> 0.291990224
D77: Energy rate impact of both (¢/kWh) | E77: =AVERAGE(E61:N61) -> 0.1345558444 | F77: =AVERAGE(E61:X61) -> 0.1905171059
D79: annual bill w/o DG | E79: =E5*E14+E15*12 -> 1343.619728 | F79: =F5*F14+F15*12 -> 1343.619728 | G79: 1343.619728 | H79: 1343.619728 | I79: 1343.619728 | J79: 1343.619728 | K79: 1343.619728 | L79: 1343.619728 | M79: 1343.619728 | N79: 1343.619728 | O79: 1343.619728 | P79: 1343.619728 | Q79: 1343.619728 | R79: 1343.619728 | S79: 1343.619728 | T79: 1343.619728 | U79: 1343.619728 | V79: 1343.619728 | W79: 1343.619728 | X79: 1343.619728
D80: annual bill w/ DG | E80: =E79+E84 -> 1345.638759 | F80: =F79+F84 -> 1347.667716 | G80: 1349.706675 | H80: 1351.755707 | I80: 1353.81489 | J80: 1355.884297 | K80: 1357.964006 | L80: 1360.054094 | M80: 1362.154638 | N80: 1364.265717 | O80: 1364.265717 | P80: 1364.265717 | Q80: 1364.265717 | R80: 1364.265717 | S80: 1364.265717 | T80: 1364.265717 | U80: 1364.265717 | V80: 1364.265717 | W80: 1364.265717 | X80: 1364.265717
D81: Annual Impact to Avg non-NM customer
D82: impact due to AC | E82: =E59*10*$E$5 -> -1.096746305 | F82: -2.19349261 | G82: -3.290238915 | H82: -4.38698522 | I82: -5.483731524 | J82: -6.580477829 | K82: -7.677224134 | L82: -8.773970439 | M82: -9.870716744 | N82: -10.96746305 | O82: -10.96746305 | P82: -10.96746305 | Q82: -10.96746305 | R82: -10.96746305 | S82: -10.96746305 | T82: -10.96746305 | U82: -10.96746305 | V82: -10.96746305 | W82: -10.96746305 | X82: -10.96746305
D83: impact due to lost revenues | E83: =E60*10*$E$5 -> 3.115776958 | F83: 6.241481032 | G83: 9.377185617 | H83: 12.52296483 | I83: 15.67889353 | J83: 18.84504731 | K83: 22.02150253 | L83: 25.20833628 | M83: 28.40562647 | N83: 31.61345175 | O83: 31.61345175 | P83: 31.61345175 | Q83: 31.61345175 | R83: 31.61345175 | S83: 31.61345175 | T83: 31.61345175 | U83: 31.61345175 | V83: 31.61345175 | W83: 31.61345175 | X83: 31.61345175
D84: impact of both | E84: =E61*10*$E$5 -> 2.019030653 | F84: 4.047988423 | G84: 6.086946702 | H84: 8.135979612 | I84: 10.19516201 | J84: 12.26456948 | K84: 14.34427839 | L84: 16.43436584 | M84: 18.53490972 | N84: 20.6459887 | O84: 20.6459887 | P84: 20.6459887 | Q84: 20.6459887 | R84: 20.6459887 | S84: 20.6459887 | T84: 20.6459887 | U84: 20.6459887 | V84: 20.6459887 | W84: 20.6459887 | X84: 20.6459887
D86: Hayet customer size sens. | E86: 8.3437 | F86: =E86 -> 8.3437 | G86: =F86 -> 8.3437 | H86: 8.3437 | I86: 8.3437 | J86: 8.3437 | K86: 8.3437 | L86: 8.3437 | M86: 8.3437 | N86: 8.3437 | O86: 8.3437 | P86: 8.3437 | Q86: 8.3437 | R86: 8.3437 | S86: 8.3437 | T86: 8.3437 | U86: 8.3437 | V86: 8.3437 | W86: 8.3437 | X86: 8.3437
D87: impact to non-NM customer | E87: =E61*10*$E$86 -> 2.011151172 | F87: =F61*10*$E$86 -> 4.032190718 | G87: 6.063191747 | H87: 8.104228089 | I87: 10.15537431 | J87: 12.2167057 | K87: 14.28829832 | L87: 16.37022899 | M87: 18.46257527 | N87: 20.56541554 | O87: 20.56541554 | P87: 20.56541554 | Q87: 20.56541554 | R87: 20.56541554 | S87: 20.56541554 | T87: 20.56541554 | U87: 20.56541554 | V87: 20.56541554 | W87: 20.56541554 | X87: 20.56541554
M89: variable | N89: =N49*$E$86 -> -0.3423155511 | O89: 731681 | P89: =N89*O89 -> -250465.7847
P90: =N90*O90 -> 0
M91: avoided capacity | N91: =((-Inputs!D37*N28)/N29)*$E$86 -> -2.678390793 | O91: =O89 -> 731681 | P91: -1959727.654
M92: fixed shift | N92: =N93-N91 -> 23.58612188 | O92: =O91 -> 731681 | P92: 17257517.24 | Q92: testimony calc | R92: =ROUND(P92/1000000,1) -> 17.3
M93: fixed cost | N93: =N50*$E$86 -> 20.90773109 | O93: =O91 -> 731681 | P93: 15297789.59
P94: 0
P95: 0
M96: variable + fixed | N96: =N51*$E$86 -> 20.56541554 | O96: =O93 -> 731681 | P96: 15047323.81

Sheet year_to_year_calcs
B1: Utah NEM Rate Impact Analysis
E2: 2015 | F2: 2016 | G2: 2017 | H2: 2018 | I2: 2019 | J2: 2020 | K2: 2021 | L2: 2022 | M2: 2023 | N2: 2024 | O2: 2025 | P2: 2026 | Q2: 2027 | R2: 2028 | S2: 2029 | T2: 2030 | U2: 2031 | V2: 2032 | W2: 2033 | X2: 2034
B3: Scenario calculations for no DGPV case | C3: No DG PV Case
C4: Rates
B5: Fuel and Purchased Power Charge | D5: Energy Rate - variable portion ($/MWh) | E5: =Rate_Impacts_With_v_Without!E12 -> 39.08473915 | F5: =Rate_Impacts_With_v_Without!F12 -> 39.08473915 | G5: =Rate_Impacts_With_v_Without!G12 -> 39.08473915 | H5: =Rate_Impacts_With_v_Without!H12 -> 39.08473915 | I5: =Rate_Impacts_With_v_Without!I12 -> 39.08473915 | J5: =Rate_Impacts_With_v_Without!J12 -> 39.08473915 | K5: =Rate_Impacts_With_v_Without!K12 -> 39.08473915 | L5: =Rate_Impacts_With_v_Without!L12 -> 39.08473915 | M5: =Rate_Impacts_With_v_Without!M12 -> 39.08473915 | N5: =Rate_Impacts_With_v_Without!N12 -> 39.08473915 | O5: =Rate_Impacts_With_v_Without!O12 -> 39.08473915 | P5: =Rate_Impacts_With_v_Without!P12 -> 39.08473915 | Q5: =Rate_Impacts_With_v_Without!Q12 -> 39.08473915 | R5: =Rate_Impacts_With_v_Without!R12 -> 39.08473915 | S5: =Rate_Impacts_With_v_Without!S12 -> 39.08473915 | T5: =Rate_Impacts_With_v_Without!T12 -> 39.08473915 | U5: =Rate_Impacts_With_v_Without!U12 -> 39.08473915 | V5: =Rate_Impacts_With_v_Without!V12 -> 39.08473915 | W5: =Rate_Impacts_With_v_Without!W12 -> 39.08473915 | X5: =Rate_Impacts_With_v_Without!X12 -> 39.08473915
B6: Energy rate times fixed portion | D6: Energy Rate - fixed portion ($/MWh) | E6: =Rate_Impacts_With_v_Without!E13 -> 112.7252609 | F6: =Rate_Impacts_With_v_Without!F13 -> 112.7252609 | G6: =Rate_Impacts_With_v_Without!G13 -> 112.7252609 | H6: =Rate_Impacts_With_v_Without!H13 -> 112.7252609 | I6: =Rate_Impacts_With_v_Without!I13 -> 112.7252609 | J6: =Rate_Impacts_With_v_Without!J13 -> 112.7252609 | K6: =Rate_Impacts_With_v_Without!K13 -> 112.7252609 | L6: =Rate_Impacts_With_v_Without!L13 -> 112.7252609 | M6: =Rate_Impacts_With_v_Without!M13 -> 112.7252609 | N6: =Rate_Impacts_With_v_Without!N13 -> 112.7252609 | O6: =Rate_Impacts_With_v_Without!O13 -> 112.7252609 | P6: =Rate_Impacts_With_v_Without!P13 -> 112.7252609 | Q6: =Rate_Impacts_With_v_Without!Q13 -> 112.7252609 | R6: =Rate_Impacts_With_v_Without!R13 -> 112.7252609 | S6: =Rate_Impacts_With_v_Without!S13 -> 112.7252609 | T6: =Rate_Impacts_With_v_Without!T13 -> 112.7252609 | U6: =Rate_Impacts_With_v_Without!U13 -> 112.7252609 | V6: =Rate_Impacts_With_v_Without!V13 -> 112.7252609 | W6: =Rate_Impacts_With_v_Without!W13 -> 112.7252609 | X6: =Rate_Impacts_With_v_Without!X13 -> 112.7252609
B7: Sum of above | D7: Total Energy Rate ($/MWh) | E7: =Rate_Impacts_With_v_Without!E14 -> 151.81 | F7: =Rate_Impacts_With_v_Without!F14 -> 151.81 | G7: =Rate_Impacts_With_v_Without!G14 -> 151.81 | H7: =Rate_Impacts_With_v_Without!H14 -> 151.81 | I7: =Rate_Impacts_With_v_Without!I14 -> 151.81 | J7: =Rate_Impacts_With_v_Without!J14 -> 151.81 | K7: =Rate_Impacts_With_v_Without!K14 -> 151.81 | L7: =Rate_Impacts_With_v_Without!L14 -> 151.81 | M7: =Rate_Impacts_With_v_Without!M14 -> 151.81 | N7: =Rate_Impacts_With_v_Without!N14 -> 151.81 | O7: =Rate_Impacts_With_v_Without!O14 -> 151.81 | P7: =Rate_Impacts_With_v_Without!P14 -> 151.81 | Q7: =Rate_Impacts_With_v_Without!Q14 -> 151.81 | R7: =Rate_Impacts_With_v_Without!R14 -> 151.81 | S7: =Rate_Impacts_With_v_Without!S14 -> 151.81 | T7: =Rate_Impacts_With_v_Without!T14 -> 151.81 | U7: =Rate_Impacts_With_v_Without!U14 -> 151.81 | V7: =Rate_Impacts_With_v_Without!V14 -> 151.81 | W7: =Rate_Impacts_With_v_Without!W14 -> 151.81 | X7: =Rate_Impacts_With_v_Without!X14 -> 151.81
B8: Customer charge | D8: Customer ($/Month) | E8: =Rate_Impacts_With_v_Without!E15 -> 6 | F8: =Rate_Impacts_With_v_Without!F15 -> 6 | G8: =Rate_Impacts_With_v_Without!G15 -> 6 | H8: =Rate_Impacts_With_v_Without!H15 -> 6 | I8: =Rate_Impacts_With_v_Without!I15 -> 6 | J8: =Rate_Impacts_With_v_Without!J15 -> 6 | K8: =Rate_Impacts_With_v_Without!K15 -> 6 | L8: =Rate_Impacts_With_v_Without!L15 -> 6 | M8: =Rate_Impacts_With_v_Without!M15 -> 6 | N8: =Rate_Impacts_With_v_Without!N15 -> 6 | O8: =Rate_Impacts_With_v_Without!O15 -> 6 | P8: =Rate_Impacts_With_v_Without!P15 -> 6 | Q8: =Rate_Impacts_With_v_Without!Q15 -> 6 | R8: =Rate_Impacts_With_v_Without!R15 -> 6 | S8: =Rate_Impacts_With_v_Without!S15 -> 6 | T8: =Rate_Impacts_With_v_Without!T15 -> 6 | U8: =Rate_Impacts_With_v_Without!U15 -> 6 | V8: =Rate_Impacts_With_v_Without!V15 -> 6 | W8: =Rate_Impacts_With_v_Without!W15 -> 6 | X8: =Rate_Impacts_With_v_Without!X15 -> 6
B9: Minimum bill | D9: Minimum bill ($) | E9: =Rate_Impacts_With_v_Without!E16 -> 8 | F9: =Rate_Impacts_With_v_Without!F16 -> 8 | G9: =Rate_Impacts_With_v_Without!G16 -> 8 | H9: =Rate_Impacts_With_v_Without!H16 -> 8 | I9: =Rate_Impacts_With_v_Without!I16 -> 8 | J9: =Rate_Impacts_With_v_Without!J16 -> 8 | K9: =Rate_Impacts_With_v_Without!K16 -> 8 | L9: =Rate_Impacts_With_v_Without!L16 -> 8 | M9: =Rate_Impacts_With_v_Without!M16 -> 8 | N9: =Rate_Impacts_With_v_Without!N16 -> 8 | O9: =Rate_Impacts_With_v_Without!O16 -> 8 | P9: =Rate_Impacts_With_v_Without!P16 -> 8 | Q9: =Rate_Impacts_With_v_Without!Q16 -> 8 | R9: =Rate_Impacts_With_v_Without!R16 -> 8 | S9: =Rate_Impacts_With_v_Without!S16 -> 8 | T9: =Rate_Impacts_With_v_Without!T16 -> 8 | U9: =Rate_Impacts_With_v_Without!U16 -> 8 | V9: =Rate_Impacts_With_v_Without!V16 -> 8 | W9: =Rate_Impacts_With_v_Without!W16 -> 8 | X9: =Rate_Impacts_With_v_Without!X16 -> 8
C11: With DG PV
C12: Rates
B13: New variable costs / net sales | D13: Energy Rate - variable portion ($/MWh) | E13: =Rate_Impacts_With_v_Without!E32 -> 39.08072701 | F13: =Rate_Impacts_With_v_Without!F32 -> 39.07669516 | G13: =Rate_Impacts_With_v_Without!G32 -> 39.07264343 | H13: =Rate_Impacts_With_v_Without!H32 -> 39.06857167 | I13: =Rate_Impacts_With_v_Without!I32 -> 39.06447976 | J13: =Rate_Impacts_With_v_Without!J32 -> 39.06036752 | K13: =Rate_Impacts_With_v_Without!K32 -> 39.05623481 | L13: =Rate_Impacts_With_v_Without!L32 -> 39.05208148 | M13: =Rate_Impacts_With_v_Without!M32 -> 39.04790736 | N13: =Rate_Impacts_With_v_Without!N32 -> 39.04371232 | O13: =Rate_Impacts_With_v_Without!O32 -> 39.04371232 | P13: =Rate_Impacts_With_v_Without!P32 -> 39.04371232 | Q13: =Rate_Impacts_With_v_Without!Q32 -> 39.04371232 | R13: =Rate_Impacts_With_v_Without!R32 -> 39.04371232 | S13: =Rate_Impacts_With_v_Without!S32 -> 39.04371232 | T13: =Rate_Impacts_With_v_Without!T32 -> 39.04371232 | U13: =Rate_Impacts_With_v_Without!U32 -> 39.04371232 | V13: =Rate_Impacts_With_v_Without!V32 -> 39.04371232 | W13: =Rate_Impacts_With_v_Without!W32 -> 39.04371232 | X13: =Rate_Impacts_With_v_Without!X32 -> 39.04371232
B14: New fixed costs / net sales | D14: Energy Rate - fixed portion ($/MWh) | E14: =Rate_Impacts_With_v_Without!E33 -> 112.9703113 | F14: =Rate_Impacts_With_v_Without!F33 -> 113.2165666 | G14: =Rate_Impacts_With_v_Without!G33 -> 113.4640356 | H14: =Rate_Impacts_With_v_Without!H33 -> 113.7127274 | I14: =Rate_Impacts_With_v_Without!I33 -> 113.9626511 | J14: =Rate_Impacts_With_v_Without!J33 -> 114.2138157 | K14: =Rate_Impacts_With_v_Without!K33 -> 114.4662307 | L14: =Rate_Impacts_With_v_Without!L33 -> 114.7199053 | M14: =Rate_Impacts_With_v_Without!M33 -> 114.974849 | N14: =Rate_Impacts_With_v_Without!N33 -> 115.2310714 | O14: =Rate_Impacts_With_v_Without!O33 -> 115.2310714 | P14: =Rate_Impacts_With_v_Without!P33 -> 115.2310714 | Q14: =Rate_Impacts_With_v_Without!Q33 -> 115.2310714 | R14: =Rate_Impacts_With_v_Without!R33 -> 115.2310714 | S14: =Rate_Impacts_With_v_Without!S33 -> 115.2310714 | T14: =Rate_Impacts_With_v_Without!T33 -> 115.2310714 | U14: =Rate_Impacts_With_v_Without!U33 -> 115.2310714 | V14: =Rate_Impacts_With_v_Without!V33 -> 115.2310714 | W14: =Rate_Impacts_With_v_Without!W33 -> 115.2310714 | X14: =Rate_Impacts_With_v_Without!X33 -> 115.2310714
B15: Sum of above | D15: Total Energy Rate ($/MWh) | E15: =Rate_Impacts_With_v_Without!E34 -> 152.0510383 | F15: =Rate_Impacts_With_v_Without!F34 -> 152.2932617 | G15: =Rate_Impacts_With_v_Without!G34 -> 152.536679 | H15: =Rate_Impacts_With_v_Without!H34 -> 152.7812991 | I15: =Rate_Impacts_With_v_Without!I34 -> 153.0271308 | J15: =Rate_Impacts_With_v_Without!J34 -> 153.2741832 | K15: =Rate_Impacts_With_v_Without!K34 -> 153.5224655 | L15: =Rate_Impacts_With_v_Without!L34 -> 153.7719868 | M15: =Rate_Impacts_With_v_Without!M34 -> 154.0227564 | N15: =Rate_Impacts_With_v_Without!N34 -> 154.2747837 | O15: =Rate_Impacts_With_v_Without!O34 -> 154.2747837 | P15: =Rate_Impacts_With_v_Without!P34 -> 154.2747837 | Q15: =Rate_Impacts_With_v_Without!Q34 -> 154.2747837 | R15: =Rate_Impacts_With_v_Without!R34 -> 154.2747837 | S15: =Rate_Impacts_With_v_Without!S34 -> 154.2747837 | T15: =Rate_Impacts_With_v_Without!T34 -> 154.2747837 | U15: =Rate_Impacts_With_v_Without!U34 -> 154.2747837 | V15: =Rate_Impacts_With_v_Without!V34 -> 154.2747837 | W15: =Rate_Impacts_With_v_Without!W34 -> 154.2747837 | X15: =Rate_Impacts_With_v_Without!X34 -> 154.2747837
B16: Same as No DG PV | D16: Customer ($/Month) | E16: =Rate_Impacts_With_v_Without!E35 -> 6 | F16: =Rate_Impacts_With_v_Without!F35 -> 6 | G16: =Rate_Impacts_With_v_Without!G35 -> 6 | H16: =Rate_Impacts_With_v_Without!H35 -> 6 | I16: =Rate_Impacts_With_v_Without!I35 -> 6 | J16: =Rate_Impacts_With_v_Without!J35 -> 6 | K16: =Rate_Impacts_With_v_Without!K35 -> 6 | L16: =Rate_Impacts_With_v_Without!L35 -> 6 | M16: =Rate_Impacts_With_v_Without!M35 -> 6 | N16: =Rate_Impacts_With_v_Without!N35 -> 6 | O16: =Rate_Impacts_With_v_Without!O35 -> 6 | P16: =Rate_Impacts_With_v_Without!P35 -> 6 | Q16: =Rate_Impacts_With_v_Without!Q35 -> 6 | R16: =Rate_Impacts_With_v_Without!R35 -> 6 | S16: =Rate_Impacts_With_v_Without!S35 -> 6 | T16: =Rate_Impacts_With_v_Without!T35 -> 6 | U16: =Rate_Impacts_With_v_Without!U35 -> 6 | V16: =Rate_Impacts_With_v_Without!V35 -> 6 | W16: =Rate_Impacts_With_v_Without!W35 -> 6 | X16: =Rate_Impacts_With_v_Without!X35 -> 6
B17: Same as No DG PV | D17: Minimum bill ($) | E17: =Rate_Impacts_With_v_Without!E36 -> 8 | F17: =Rate_Impacts_With_v_Without!F36 -> 8 | G17: =Rate_Impacts_With_v_Without!G36 -> 8 | H17: =Rate_Impacts_With_v_Without!H36 -> 8 | I17: =Rate_Impacts_With_v_Without!I36 -> 8 | J17: =Rate_Impacts_With_v_Without!J36 -> 8 | K17: =Rate_Impacts_With_v_Without!K36 -> 8 | L17: =Rate_Impacts_With_v_Without!L36 -> 8 | M17: =Rate_Impacts_With_v_Without!M36 -> 8 | N17: =Rate_Impacts_With_v_Without!N36 -> 8 | O17: =Rate_Impacts_With_v_Without!O36 -> 8 | P17: =Rate_Impacts_With_v_Without!P36 -> 8 | Q17: =Rate_Impacts_With_v_Without!Q36 -> 8 | R17: =Rate_Impacts_With_v_Without!R36 -> 8 | S17: =Rate_Impacts_With_v_Without!S36 -> 8 | T17: =Rate_Impacts_With_v_Without!T36 -> 8 | U17: =Rate_Impacts_With_v_Without!U36 -> 8 | V17: =Rate_Impacts_With_v_Without!V36 -> 8 | W17: =Rate_Impacts_With_v_Without!W36 -> 8 | X17: =Rate_Impacts_With_v_Without!X36 -> 8
C19: Year-to-Year Impacts
C20: Rates - Change from Previous Year
D21: Energy Rate - variable portion ($/MWh) | E21: ---- | F21: =F13-E13 -> -0.0040318584 | G21: =G13-F13 -> -0.004051730988 | H21: -0.004071750864 | I21: -0.004091919487 | J21: =J13-I13 -> -0.004112238334 | K21: -0.0041327089 | L21: -0.004153332701 | M21: -0.004174111268 | N21: -0.004195046156 | O21: 0 | P21: 0 | Q21: 0 | R21: 0 | S21: 0 | T21: 0 | U21: 0 | V21: 0 | W21: 0 | X21: 0
D22: Energy Rate - fixed portion ($/MWh) | E22: ---- | F22: =F14-E14 -> 0.246255278 | G22: 0.2474690433 | H22: 0.2486918045 | I22: 0.2499236508 | J22: 0.2511646724 | K22: 0.2524149606 | L22: 0.253674608 | M22: 0.2549437081 | N22: 0.2562223558 | O22: 0 | P22: 0 | Q22: 0 | R22: 0 | S22: 0 | T22: 0 | U22: 0 | V22: 0 | W22: 0 | X22: 0
D23: Total Energy Rate ($/MWh) | E23: ---- | F23: =F15-E15 -> 0.2422234196 | G23: =G15-F15 -> 0.2434173123 | H23: 0.2446200537 | I23: 0.2458317313 | J23: =J15-I15 -> 0.2470524341 | K23: 0.2482822517 | L23: 0.2495212753 | M23: 0.2507695968 | N23: 0.2520273096 | O23: 0 | P23: 0 | Q23: 0 | R23: 0 | S23: 0 | T23: 0 | U23: 0 | V23: 0 | W23: 0 | X23: 0
D24: Customer ($/Month) | E24: ---- | F24: =F16-E16 -> 0 | G24: =G16-F16 -> 0 | H24: 0 | I24: 0 | J24: 0 | K24: 0 | L24: 0 | M24: 0 | N24: 0 | O24: 0 | P24: 0 | Q24: 0 | R24: 0 | S24: 0 | T24: 0 | U24: 0 | V24: 0 | W24: 0 | X24: 0
D25: Minimum bill ($) | E25: ---- | F25: 0 | G25: 0 | H25: 0 | I25: 0 | J25: 0 | K25: 0 | L25: 0 | M25: 0 | N25: 0 | O25: 0 | P25: 0 | Q25: 0 | R25: 0 | S25: 0 | T25: 0 | U25: 0 | V25: 0 | W25: 0 | X25: 0
D27: Energy Rate - variable portion (%) | E27: ---- | F27: =F13/E13-1 -> -0.0001031674359 | G27: =G13/F13-1 -> -0.000103686634 | H27: =H13/G13-1 -> -0.0001042097618 | I27: -0.0001047368591 | J27: -0.0001052679662 | K27: -0.0001058031238 | L27: -0.0001063423733 | M27: -0.0001068857564 | N27: -0.0001074333156 | O27: 0 | P27: 0 | Q27: 0 | R27: 0 | S27: 0 | T27: 0 | U27: 0 | V27: 0 | W27: 0 | X27: 0
D28: Energy Rate - fixed portion (%) | E28: ---- | F28: =F14/E14-1 -> 0.002179822958 | G28: 0.002185802404 | H28: =H14/G14-1 -> 0.002191811733 | I28: 0.002197851169 | J28: 0.002203920935 | K28: 0.002210021257 | L28: 0.002216152366 | M28: 0.002222314492 | N28: 0.002228507869 | O28: 0 | P28: 0 | Q28: 0 | R28: 0 | S28: 0 | T28: 0 | U28: 0 | V28: 0 | W28: 0 | X28: 0
D29: Total Energy Rate (%) | E29: ---- | F29: 0.001593040221 | G29: 0.001598345912 | H29: =H15/G15-1 -> 0.001603680212 | I29: 0.001609043337 | J29: 0.001614435511 | K29: 0.001619856955 | L29: 0.001625307895 | M29: 0.00163078856 | N29: 0.001636299178 | O29: 0 | P29: 0 | Q29: 0 | R29: 0 | S29: 0 | T29: 0 | U29: 0 | V29: 0 | W29: 0 | X29: 0

Sheet Ref_Sheet
B2: Table 1: RMP Residential Tariff
B3: https://www.rockymountainpower.net/content/dam/rocky_mountain_power/doc/About_Us/Rates_and_Regulation/Utah/Approved_Tariffs/Rate_Schedules/Residential_Service.pdf
B5: Customer Charge
B6: Single Phase | C6: 6 | D6: per customer month
B7: Three phase | C7: 12 | D7: per customer month
B9: Energy Charge | C9: cents per kwh | D9: usage block
B10: Summer Block 1 | C10: 8.8498 | D10: 400 | E10: kWh | F10: 5 | G10: moths of the year
B11: Summer Block 2 | C11: 11.5429 | D11: 600 | E11: kWh | F11: 5 | G11: moths of the year
B12: Summer Block 3 | C12: 14.4508 | E12: all remaining kWh | F12: 5 | G12: moths of the year
B13: Winter Block 1 | C13: 8.8498 | D13: 400 | F13: 7 | G13: months of the year
B14: Winter Block 2 | C14: 10.3111 | D14: 600 | E14: all remaining kWh | F14: 7 | G14: months of the year
B16: Summer Average | C16: =AVERAGE(C10:C11) -> 10.19635 | D16: Synapse Calculation
B17: Winter Average | C17: =AVERAGE(C13:C14) -> 9.58045 | D17: Synapse Calculation
B18: Annual Weighted Average | C18: =((F10/12)*C16)+((F13/12)*C17) -> 9.837075 | D18: Synapse Calculation
B21: Minimum Bill
B22: Single Phase | C22: 8 | D22: per customer month
B23: Three phase | C23: 16 | D23: per customer month
B25: Table 2: Utah Solar Generation Profile
B26: Available online at: www.pvwatts.nrel.gov
B27: PVWatts: Monthly PV Performance Data
B28: Requested Location: | C28: Salt Lake City Utah
B29: Location: | C29: SALT LAKE CITY, UT
B30: Lat (deg N): | C30: 40.77
B31: Long (deg W): | C31: 111.97
B32: Elev (m): | C32: 1288
B33: DC System Size (kW): | C33: 5
B34: Module Type: | C34: Standard
B35: Array Type: | C35: Fixed (roof mount)
B36: Array Tilt (deg): | C36: 20
B37: Array Azimuth (deg): | C37: 180
B38: System Losses: | C38: 14
B39: Invert Efficiency: | C39: 96
B40: DC to AC Size Ratio: | C40: 1.1
B41: Average Cost of Electricity Purchased from Utility ($/kWh): | C41: 0.1
B42: Initial Cost | C42: 3.3
B43: Cost of Electricity Generated by System ($/kWh): | C43: 0.18
B45: Month | C45: AC System Output(kWh) | D45: Solar Radiation (kWh/m^2/day) | E45: Plane of Array Irradiance (W/m^2) | F45: DC array Output (kWh) | G45: Value ($)
B46: 1 | C46: 362.8890076 | D46: 2.75612473 | E46: 85.43986511 | F46: 381.1025391 | G46: 37.41
B47: 2 | C47: 455.8474121 | D47: 3.8986764 | E47: 109.162941 | F47: 477.0622253 | G47: 47
B48: 3 | C48: 608.9019165 | D48: 4.83562851 | E48: 149.90448 | F48: 636.7689209 | G48: 62.78
B49: 4 | C49: 678.0981445 | D49: 5.71737099 | E49: 171.5211334 | F49: 708.862915 | G49: 69.91
B50: 5 | C50: 836.8475952 | D50: 7.01864862 | E50: 217.5781097 | F50: 873.9233398 | G50: 86.28
B51: 6 | C51: 802.8485107 | D51: 7.2568922 | E51: 217.7067718 | F51: 838.4519653 | G51: 82.77
B52: 7 | C52: 840.4923706 | D52: 7.55199099 | E52: 234.1117249 | F52: 877.5559082 | G52: 86.65
B53: 8 | C53: 812.5726318 | D53: 7.21767378 | E53: 223.7478943 | F53: 848.5435181 | G53: 83.78
B54: 9 | C54: 698.034729 | D54: 6.16007996 | E54: 184.8023987 | F54: 728.774231 | G54: 71.97
B55: 10 | C55: 594.208374 | D55: 4.93516588 | E55: 152.9901428 | F55: 620.8773193 | G55: 61.26
B56: 11 | C56: 401.7036743 | D56: 3.31421304 | E56: 99.4263916 | F56: 421.0104675 | G56: 41.42
B57: 12 | C57: 298.8479309 | D57: 2.268929 | E57: 70.33679962 | F57: 314.5162964 | G57: 30.81
B58: Total | C58: 7391.292297 | D58: 62.9313941 | E58: 1916.728653 | F58: 7727.449646 | G58: 762.04
B60: Table 3: Avoided Costs in Utah
B61: Value of Solar in Utah Clean Power Research 2014.
B62: Available online: http://www.psc.utah.gov/utilities/electric/13docs/13035184/255147Exhibit%20A%20to%20Wright%20Testimony%20-%20UCE%202_1%20DT%20-%20Value%20of%20Solar%20in%20Utah%205-22-2014.pdf
B63: Fuel Value | C63: 0.043 | D63: ($/kWh) | F63: =C63*Ref_Sheet!$C$71 -> 43 | G63: $/MWh
B64: Plant O&M Value | C64: 0.013 | D64: ($/kWh) | F64: =C64*Ref_Sheet!$C$71 -> 13 | G64: $/MWh
B65: Generation Capacity Value | C65: 0.014 | D65: ($/kWh) | F65: =C65*Ref_Sheet!$C$71 -> 14 | G65: $/MWh
B66: Avoided T&D Capacity Cost | C66: 0.011 | D66: ($/kWh) | F66: =C66*Ref_Sheet!$C$71 -> 11 | G66: $/MWh
B67: Avoided Environmental Cost | C67: 0.009 | D67: ($/kWh) | F67: =C67*Ref_Sheet!$C$71 -> 9 | G67: $/MWh
B68: Fuel Price Guarantee Value | C68: 0.026 | D68: ($/kWh) | F68: =C68*Ref_Sheet!$C$71 -> 26 | G68: $/MWh
B70: Table 4: Conversion factors
B71: kWh per MWh | C71: 1000
B72: cents per dollar | C72: 100
